bitfinex/quotes_ETHUSD_20240924
["timestamp","ask_amount","ask_price","bid_price","bid_amount"]
[1727140421121,0.7596,2642.5,2642.0,3.78501]
[1727140421446,0.03799129,2642.1,2642.0,3.78501]
[1727140421648,0.03805717,2642.4,2642.0,3.78501]
[1727140421960,0.03801023,2642.1,2641.8,3.78526]
[1727140422122,3.78452,2642.4,2641.8,3.78526]
[1727140422322,0.03786802,2642.0,2641.8,3.78526]
[1727140422521,3.78452,2642.4,2641.8,3.78526]
[1727140422823,0.7596,2642.5,2641.8,3.78526]
[1727140423053,0.03860064,2642.4,2641.9,3.78507]
[1727140423424,0.03860064,2642.4,2642.0,3.78487]
[1727140424829,0.037352,2642.3,2642.0,3.78487]
[1727140425043,3.62040274,2642.6,2641.9,3.78507]
[1727140425362,3.78446,2642.4,2641.9,3.78507]
[1727140425566,3.78462,2642.3,2641.7,3.78536]
[1727140425723,3.82197394,2642.3,2641.7,3.78536]
[1727140427354,0.03735394,2642.3,2641.8,3.7852]
[1727140427564,0.03735394,2642.3,2641.9,3.78515]
[1727140429043,0.03735394,2642.3,2641.7,3.78535]
[1727140429241,0.03735394,2642.3,2641.7,8.031045]
[1727140429558,0.03735394,2642.3,2641.8,3.78528]
[1727140431263,0.03735394,2642.3,2641.7,3.78531]
[1727140431264,3.78474,2642.2,2641.7,3.78531]
[1727140431782,3.82197144,2642.2,2641.7,3.78531]
[1727140433890,4.66419358,2642.2,2641.7,3.78531]
[1727140434884,0.03723144,2642.2,2641.8,3.78528]
[1727140435085,8.38479,2642.4,2641.8,3.78528]
[1727140435288,0.03717135,2642.1,2641.8,3.78528]
[1727140435443,0.03717135,2642.1,2641.9,3.78503]
[1727140435653,0.8158,2642.4,2642.0,3.78487]
[1727140435995,0.03721432,2642.3,2642.1,3.78483]
[1727140436485,0.8158,2642.6,2642.1,3.78483]
[1727140436668,0.0372028,2642.2,2642.1,3.78483]
[1727140437051,0.8158,2642.6,2642.1,3.78483]
[1727140438166,6.170331,2642.6,2641.9,3.78513]
[1727140438352,6.170331,2642.6,2641.8,4.55243]
[1727140438554,0.8158,2642.3,2641.8,3.78523]
[1727140438855,0.03724624,2642.2,2641.8,3.78523]
[1727140439182,0.8158,2642.3,2641.8,7.57044]
[1727140439404,0.03728579,2642.1,2641.8,7.57042]
[1727140439606,0.03730144,2642.2,2641.8,3.78521]
[1727140439903,0.8158,2642.3,2641.6,3.7855]
[1727140439904,4.60038,2642.3,2641.7,3.78541]
[1727140440118,0.03728992,2642.1,2641.7,3.78541]
[1727140440260,4.60038,2642.3,2641.7,3.78541]
[1727140440464,0.03729316,2642.2,2641.8,3.78529]
[1727140440667,4.60038,2642.3,2641.8,3.78529]
[1727140440893,0.03723642,2642.1,2641.8,3.78529]
[1727140441100,4.60038,2642.3,2641.8,3.78529]
[1727140441305,0.03722904,2642.0,2641.8,3.78529]
[1727140441516,4.60038,2642.3,2641.6,3.7855]
[1727140441517,4.60047,2642.3,2641.7,3.78531]
[1727140441683,0.03720531,2641.9,2641.3,3.7859]
[1727140441877,0.7559,2641.9,2641.3,4.61177]
[1727140442084,0.03713769,2641.8,2641.5,3.78563]
[1727140449815,0.03713769,2641.8,2641.7,6.93284531]
[1727140449975,0.03713769,2641.8,2641.7,7.00854223]
[1727140450305,7.32,2642.3,2641.9,7.57014]
[1727140450625,3.78444,2642.4,2641.9,3.78507]
[1727140451116,7.56877,2642.5,2641.9,3.78507]
[1727140451318,3.78444,2642.4,2641.9,3.78507]
[1727140451915,8.401237,2642.5,2641.9,3.78507]
[1727140452078,0.7559,2642.4,2641.6,4.61146]
[1727140452278,0.7559,2642.0,2641.6,3.78556]
[1727140452692,0.7559,2642.0,2641.4,7.75908531]
[1727140452917,0.7559,2642.0,2641.5,3.78571]
[1727140453521,0.03707783,2641.9,2641.5,3.78571]
[1727140453695,0.03707783,2641.9,2641.4,3.8259]
[1727140454080,0.03707783,2641.9,2641.4,7.61165]
[1727140454299,0.03707783,2641.9,2641.4,0.8259]
[1727140454636,3.82231783,2641.9,2641.4,4.61177]
[1727140455633,3.82231783,2641.9,2641.4,0.8259]
[1727140455932,3.82231783,2641.9,2641.3,3.78589]
[1727140458318,7.60760783,2641.9,2641.3,3.78589]
[1727140458511,3.78541,2641.8,2641.3,3.0]
[1727140458700,0.03684753,2641.7,2641.3,3.0]
[1727140459031,3.78541,2641.8,2641.3,3.0]
[1727140459326,3.82233166,2641.7,2641.2,7.56914]
[1727140459909,0.03685166,2641.7,2641.3,3.86169564]
[1727140460109,3.78524,2641.9,2641.3,7.64761564]
[1727140460320,0.0369182,2641.8,2641.4,3.78585]
[1727140460541,0.7559,2642.0,2641.5,3.78571]
[1727140460725,0.03693799,2641.9,2641.5,3.78571]
[1727140461306,0.03693799,2641.9,2641.6,3.78556]
[1727140461496,0.03693799,2641.9,2641.5,3.78571]
[1727140466538,0.03693799,2641.9,2641.6,0.783]
[1727140467642,0.03693799,2641.9,2641.5,3.78571]
[1727140467643,0.03693799,2641.9,2641.3,4.56892]
[1727140467852,3.78544,2641.7,2641.2,3.0]
[1727140468139,0.7828,2641.6,2641.1,3.78621]
[1727140468341,0.03680059,2641.5,2641.1,3.78621]
[1727140468919,0.03680059,2641.5,2640.7,1.19236564]
[1727140468920,0.03680059,2641.5,2640.7,1.57791043]
[1727140469125,3.78631,2641.1,2640.5,0.783]
[1727140469323,0.7828,2640.9,2640.5,0.783]
[1727140469628,3.78631,2641.1,2640.6,0.07573191]
[1727140469629,0.0365553,2640.8,2640.6,0.07573191]
[1727140469808,0.0365553,2640.8,2640.6,3.78698]
[1727140470012,0.7828,2641.1,2640.7,3.78683]
[1727140470543,0.7828,2641.1,2640.6,3.78698]
[1727140472948,3.78667,2640.9,2640.3,0.0379921]
[1727140473159,3.78667,2640.9,2640.4,3.78726]
[1727140473454,3.78667,2640.9,2640.3,0.0379921]
[1727140473758,0.7828,2640.6,2640.3,0.0379921]
[1727140473913,0.03608582,2640.5,2640.3,0.0379921]
[1727140476917,0.7828,2640.8,2640.3,0.0379921]
[1727140477123,0.03613441,2640.7,2640.3,0.0379921]
[1727140477361,0.7828,2640.8,2640.3,0.0379921]
[1727140477650,0.03613441,2640.7,2640.3,0.0379921]
[1727140478011,0.7828,2640.8,2640.3,0.0379921]
[1727140478345,0.03600678,2640.7,2640.3,0.0379921]
[1727140478745,0.7828,2640.8,2640.3,0.0379921]
[1727140478746,4.56957,2640.8,2640.3,0.0379921]
[1727140478917,0.03601092,2640.7,2640.3,0.0379921]
[1727140479117,4.56957,2640.8,2640.3,0.0379921]
[1727140479319,0.03554212,2640.7,2640.3,0.0379921]
[1727140479552,4.56957,2640.8,2640.3,0.0379921]
[1727140479754,0.03554626,2640.7,2640.3,0.0379921]
[1727140480150,4.56957,2640.8,2640.3,0.0379921]
[1727140480319,0.0355504,2640.7,2640.3,0.0379921]
[1727140480520,4.56957,2640.8,2640.3,0.0379921]
[1727140480722,0.0355504,2640.7,2640.3,0.0379921]
[1727140480915,7.57277,2641.1,2640.3,0.0379921]
[1727140480916,4.56928,2641.0,2640.4,4.57021]
[1727140481150,0.03556518,2640.9,2640.4,0.783]
[1727140481453,3.78673,2640.8,2640.4,0.783]
[1727140481817,0.03553798,2640.7,2640.4,0.783]
[1727140482245,3.78673,2640.8,2640.4,0.783]
[1727140482425,0.03552645,2640.6,2640.4,0.783]
[1727140482626,3.78673,2640.8,2640.4,0.783]
[1727140482855,7.32,2641.2,2640.7,3.78678]
[1727140483029,0.03558698,2640.7,2640.6,7.71741531]
[1727140483353,0.7828,2641.5,2641.0,4.56943]
[1727140484322,4.56856,2641.5,2641.0,0.783]
[1727140484532,0.03580004,2641.4,2641.0,0.783]
[1727140487331,3.82167004,2641.4,2640.8,4.54742]
[1727140487524,8.44665804,2641.4,2640.8,4.54741]
[1727140487855,3.78602,2641.3,2640.8,4.54741]
[1727140488357,0.03575562,2641.2,2640.8,4.54741]
[1727140488519,3.78602,2641.3,2640.8,4.54741]
[1727140488726,0.03575562,2641.2,2640.8,0.7607]
[1727140488943,3.78602,2641.3,2640.8,0.7607]
[1727140489148,0.03575562,2641.2,2640.8,0.7607]
[1727140489364,3.78602,2641.3,2640.8,0.7607]
[1727140489654,0.03575976,2641.2,2640.8,0.7607]
[1727140490058,3.78602,2641.3,2640.8,0.7607]
[1727140490259,0.03575237,2641.1,2640.8,0.7607]
[1727140490459,0.03576803,2641.2,2640.8,0.7607]
[1727140490618,0.03573671,2641.0,2640.8,0.7607]
[1727140490817,3.78587,2641.4,2640.8,0.7607]
[1727140490818,3.78587,2641.4,2640.8,8.33405]
[1727140491034,0.03572104,2640.9,2640.8,4.54734]
[1727140491233,3.78587,2641.4,2640.8,4.54734]
[1727140491434,0.03570449,2640.9,2640.8,4.54734]
[1727140491737,3.78565,2641.6,2641.0,3.78641]
[1727140491964,3.78565,2641.6,2641.1,3.78629]
[1727140493155,3.78565,2641.6,2641.0,3.86206953]
[1727140493354,4.618042,2641.6,2641.0,3.86206953]
[1727140494153,0.832392,2641.6,2641.1,3.78627]
[1727140494489,4.53836,2641.7,2641.1,3.78627]
[1727140495287,4.53836,2641.7,2641.0,3.86206953]
[1727140495488,4.53836,2641.7,2641.0,7.64840953]
[1727140495685,8.32392,2641.7,2641.0,3.86205953]
[1727140496453,3.78562,2641.6,2641.0,3.86205953]
[1727140497281,4.53836,2641.7,2641.0,3.86205953]
[1727140497477,1.98451478,2641.7,2640.9,3.14740531]
[1727140497794,5.77002478,2641.7,2640.8,4.54733]
[1727140497990,3.7858,2641.5,2640.8,8.33393]
[1727140498296,7.57162,2641.5,2640.8,4.5473]
[1727140498492,3.7859,2641.4,2640.8,4.5473]
[1727140498791,5.29597,2641.4,2640.8,4.5473]
[1727140499803,3.78605,2641.3,2640.8,0.7607]
[1727140499954,3.78605,2641.3,2640.6,3.78693]
[1727140500157,4.56417,2641.0,2640.5,3.7604]
[1727140500464,0.7777,2641.0,2640.5,4.54756]
[1727140500649,3.78637,2641.1,2640.6,3.78693]
[1727140501499,0.7777,2641.2,2640.6,0.07573429]
[1727140501793,0.7777,2641.4,2640.9,3.78648]
[1727140502088,11.10579,2641.5,2641.0,3.78641]
[1727140503195,11.10579,2641.5,2640.9,0.454688]
[1727140503492,14.89162,2641.5,2640.9,0.454688]
[1727140504157,7.57162,2641.5,2640.9,0.454688]
[1727140504363,7.57162,2641.5,2640.8,3.86234246]
[1727140504893,3.78588,2641.4,2640.8,3.86234246]
[1727140505077,3.78588,2641.4,2640.8,3.78662]
[1727140505452,3.78588,2641.4,2640.8,3.86234442]
[1727140505981,3.78579,2641.5,2640.7,4.54718]
[1727140506166,0.7777,2641.2,2640.5,4.54747]
[1727140506366,3.78638,2641.1,2640.5,4.54747]
[1727140506691,3.78638,2641.1,2640.5,0.7604]
[1727140506903,3.78638,2641.1,2640.5,4.54745]
[1727140507192,0.7777,2641.2,2640.6,3.78691]
[1727140507391,4.56364,2641.4,2640.7,3.78685]
[1727140507610,3.78609,2641.3,2640.7,3.78685]
[1727140508057,3.78625,2641.2,2640.6,3.78701]
[1727140508492,4.56364,2641.4,2640.7,3.78674]
[1727140508689,4.56364,2641.4,2641.0,0.7604]
[1727140508899,0.7777,2641.4,2641.0,4.54683]
[1727140509194,0.7777,2641.4,2641.0,0.7604]
[1727140509498,4.56359,2641.4,2641.0,0.7604]
[1727140510362,0.7777,2641.4,2641.0,4.54679]
[1727140510556,0.7777,2641.4,2641.0,5.17606505]
[1727140510868,0.7777,2641.7,2641.1,0.07572032]
[1727140511069,7.32,2641.9,2641.5,0.7604]
[1727140511070,0.7777,2641.9,2641.5,0.7604]
[1727140511289,0.7777,2642.1,2641.7,3.78533]
[1727140511469,7.32,2642.2,2641.7,3.78533]
[1727140511470,8.34676,2642.4,2641.8,3.78521]
[1727140511672,3.78467,2642.3,2641.7,0.07569867]
[1727140511881,6.128886,2642.4,2641.7,0.07569867]
[1727140511882,3.78473,2642.2,2641.7,0.07569867]
[1727140512199,6.128886,2642.4,2641.7,3.86104867]
[1727140512603,3.7848,2642.2,2641.5,0.7604]
[1727140512807,0.7777,2642.3,2641.5,0.7604]
[1727140512808,7.5703,2642.0,2641.5,0.7604]
[1727140512964,1.53473,2641.9,2641.3,3.78592]
[1727140513166,0.7777,2641.9,2641.3,0.07571272]
[1727140513477,0.7777,2641.9,2641.4,3.78577]
[1727140513679,0.7777,2641.9,2641.5,6.93302531]
[1727140513881,0.7777,2642.1,2641.5,6.93302531]
[1727140514098,3.78502,2642.0,2641.4,3.78575]
[1727140514884,0.7777,2642.1,2641.5,3.86131815]
[1727140515068,0.7892,2642.3,2641.7,3.78534]
[1727140515406,0.03626001,2642.0,2641.7,3.78534]
[1727140516305,3.78487,2642.1,2641.6,0.8304]
[1727140516470,0.03622089,2641.9,2641.4,4.61623]
[1727140516671,0.7892,2641.9,2641.4,4.61623]
[1727140516869,0.03621178,2641.8,2641.5,3.78572]
[1727140519596,0.03621178,2641.8,2641.4,0.90610491]
[1727140519597,0.03621178,2641.8,2641.4,0.8304]
[1727140519808,0.03621178,2641.8,2641.3,7.64757803]
[1727140520393,0.03621178,2641.8,2641.3,3.86161803]
[1727140520595,0.03621178,2641.8,2641.4,3.78585]
[1727140525025,0.03621178,2641.8,2641.3,3.86161803]
[1727140525196,0.03621178,2641.8,2641.2,3.97780531]
[1727140525395,3.78539,2641.8,2641.2,7.76391531]
[1727140525583,0.03650842,2641.7,2641.2,7.83962873]
[1727140526222,0.03650842,2641.7,2641.3,3.78594]
[1727140526517,0.7892,2641.9,2641.5,3.7857]
[1727140526820,0.7892,2641.9,2641.4,3.86156542]
[1727140526979,0.03651167,2641.8,2641.4,3.86156542]
[1727140527600,0.03651167,2641.8,2641.5,3.78572]
[1727140528119,0.03651167,2641.8,2641.5,3.86142606]
[1727140528287,0.03651167,2641.8,2641.5,8.03317867]
[1727140528485,0.7892,2642.1,2641.6,3.86128271]
[1727140528683,0.03648773,2641.7,2641.6,4.69168271]
[1727140528888,11.90042,2642.6,2642.0,4.57705]
[1727140529283,11.90042,2642.6,2641.8,6.93262531]
[1727140529284,0.03582287,2642.5,2641.8,3.78522]
[1727140529508,3.78452,2642.4,2641.8,3.78522]
[1727140530051,3.82040394,2642.3,2641.8,3.78522]
[1727140530209,0.03580394,2642.3,2641.8,3.78522]
[1727140534559,0.03580394,2642.3,2641.9,0.07569555]
[1727140535051,0.03580394,2642.3,2641.8,3.86089546]
[1727140537448,3.78498,2642.1,2641.5,4.57781]
[1727140537720,3.78487,2642.1,2641.5,4.57781]
[1727140538024,0.7962,2642.2,2641.5,4.57781]
[1727140538025,0.03591336,2642.0,2641.6,3.78558]
[1727140538212,0.7962,2642.2,2641.7,3.78541]
[1727140538556,0.03590005,2642.1,2641.8,5.31203367]
[1727140538856,0.03590005,2642.1,2641.9,3.78505]
[1727140539058,0.03590005,2642.1,2641.9,3.86074125]
[1727140539217,0.7962,2642.4,2641.9,3.86074125]
[1727140539417,0.7962,2642.4,2642.0,4.5771]
[1727140539651,7.32,2642.6,2642.0,4.5771]
[1727140539652,4.57984,2643.0,2642.2,5.23567142]
[1727140539962,3.78372,2642.9,2642.3,3.78456]
[1727140540109,4.57985,2643.0,2642.3,3.86024341]
[1727140540312,5.41617,2643.0,2642.3,3.86024341]
[1727140540544,3.78372,2642.9,2642.3,3.86024341]
[1727140540913,3.78372,2642.9,2642.3,3.78456]
[1727140541115,5.41617,2643.0,2642.4,3.78441]
[1727140541417,0.0348432,2642.9,2642.5,3.7842]
[1727140541613,0.0348432,2642.9,2642.5,3.85987655]
[1727140541923,0.0348432,2642.9,2642.6,3.78414]
[1727140542337,0.0348432,2642.9,2642.4,4.57651]
[1727140542648,0.0348432,2642.9,2642.4,5.034081]
[1727140542947,3.8186432,2642.9,2642.2,4.57674]
[1727140543147,3.78401,2642.7,2642.2,4.57674]
[1727140543448,0.83098137,2642.6,2642.2,8.36135]
[1727140543653,0.83098137,2642.6,2642.2,4.57671]
[1727140544147,0.03478137,2642.6,2642.2,4.57671]
[1727140544463,4.59191,2642.8,2642.2,4.57671]
[1727140544666,0.03476646,2642.5,2642.2,4.57671]
[1727140544865,4.59191,2642.8,2642.2,4.57671]
[1727140545027,0.03475081,2642.4,2642.2,4.57671]
[1727140545364,0.03473054,2642.3,2642.2,4.57671]
[1727140545574,4.59191,2642.8,2642.2,4.57671]
[1727140545769,0.03479314,2642.7,2642.2,4.57671]
[1727140546623,0.03479314,2642.7,2642.5,3.78417]
[1727140546852,4.5914,2643.2,2642.6,3.78406]
[1727140547054,0.03524598,2643.1,2642.6,3.78406]
[1727140548351,8.36004598,2643.2,2642.6,3.78406]
[1727140548674,3.81754007,2643.1,2642.6,3.78406]
[1727140548884,0.03409007,2643.1,2642.6,3.78406]
[1727140549033,3.81753007,2643.1,2642.6,3.78406]
[1727140549237,0.03409007,2643.1,2642.6,3.78406]
[1727140549542,0.03409007,2643.1,2642.7,7.72747976]
[1727140549764,3.8211121,2643.4,2642.8,3.78383]
[1727140550084,3.8211121,2643.4,2642.8,3.85949761]
[1727140550850,7.6042221,2643.4,2642.8,3.85949761]
[1727140551172,7.6042121,2643.4,2642.8,3.85949761]
[1727140551378,7.6042221,2643.4,2642.8,3.85949761]
[1727140551571,8.4122221,2643.4,2642.8,3.85949761]
[1727140551781,0.8459921,2643.4,2642.9,7.5673]
[1727140552095,0.0379921,2643.4,2643.3,3.78314]
[1727140552388,0.0379921,2643.4,2643.3,0.07565351]
[1727140552549,0.0379921,2643.4,2643.3,7.46730862]
[1727140554170,0.0379921,2643.4,2643.3,3.60851511]
[1727140554375,0.0379921,2643.4,2643.3,3.68416593]
[1727140554752,0.0379921,2643.4,2643.3,7.46730593]
[1727140555585,0.0379921,2643.4,2643.3,3.68416593]
[1727140555814,0.0379921,2643.4,2643.3,0.46599535]
[1727140555989,0.0379921,2643.4,2643.2,0.8011]
[1727140556175,0.0379921,2643.4,2643.1,3.0756509]
[1727140556581,0.0379921,2643.4,2643.0,0.8011]
[1727140556777,3.8211121,2643.4,2643.0,0.07565783]
[1727140557605,3.8210321,2643.4,2643.0,0.07565783]
[1727140557810,3.8210321,2643.4,2643.0,0.07566193]
[1727140558117,0.0379921,2643.4,2643.0,0.07566193]
[1727140558417,0.0379921,2643.4,2643.2,3.7832]
[1727140558578,0.0379921,2643.4,2643.3,0.07565157]
[1727140559815,0.0379921,2643.4,2643.1,0.8011]
[1727140560122,0.0379921,2643.4,2643.2,3.78329]
[1727140560417,0.0379921,2643.4,2643.1,0.87675281]
[1727140560836,0.0379921,2643.4,2643.0,3.14251976]
[1727140561034,0.0379921,2643.4,2642.8,4.53405]
[1727140561035,0.8281,2643.3,2642.8,4.53405]
[1727140561202,0.8281,2643.3,2642.8,4.60971201]
[1727140561403,0.0379921,2643.4,2643.0,3.14251976]
[1727140561707,0.0379921,2643.4,2643.0,3.21817868]
[1727140562097,4.61086,2643.6,2643.0,3.21817868]
[1727140562297,3.78294,2643.5,2643.0,3.21817868]
[1727140562497,8.39369,2643.6,2643.0,7.00166868]
[1727140562706,4.61086,2643.6,2643.0,3.21817868]
[1727140563021,4.61086,2643.6,2643.0,0.07565892]
[1727140563221,4.61086,2643.6,2643.0,0.53661581]
[1727140563427,8.5923953,2644.1,2643.1,4.53365]
[1727140563428,4.61064,2643.8,2643.1,4.53365]
[1727140563637,4.61064,2643.8,2643.2,0.07565266]
[1727140563836,3.78259,2643.7,2643.2,0.07565266]
[1727140564242,4.61064,2643.8,2643.2,3.85884266]
[1727140564412,4.61062,2643.8,2643.2,3.85884266]
[1727140564602,4.61062,2643.8,2643.2,4.41340798]
[1727140564802,4.61105,2643.5,2643.2,0.07565108]
[1727140564998,4.61105,2643.5,2642.9,4.53389]
[1727140565739,4.61105,2643.5,2643.0,0.07565706]
[1727140565904,0.8281,2643.5,2643.0,0.07565706]
[1727140566440,4.61097,2643.5,2643.0,0.07565706]
[1727140567052,3.78302,2643.4,2643.0,0.07565706]
[1727140567227,3.78302,2643.4,2642.9,4.53389]
[1727140567431,3.78302,2643.4,2642.9,4.60954941]
[1727140569037,0.8281,2643.5,2642.9,4.60954941]
[1727140569247,3.78302,2643.4,2642.9,4.60954941]
[1727140569949,3.7834,2643.2,2642.8,3.0]
[1727140570105,3.7834,2643.2,2642.7,0.7503]
[1727140570106,7.56683,2643.2,2642.7,3.7503]
[1727140570305,3.7834,2643.2,2642.7,3.7503]
[1727140570724,3.7834,2643.2,2642.7,4.53429]
[1727140571626,3.78307,2643.4,2642.7,4.53429]
[1727140571627,3.78317,2643.3,2642.8,0.07566417]
[1727140572664,3.78317,2643.3,2642.8,3.85951417]
[1727140573026,4.61107,2643.5,2643.0,3.14251976]
[1727140573368,4.61107,2643.5,2643.1,0.07565848]
[1727140573729,4.61107,2643.5,2643.1,0.82595848]
[1727140574970,3.78264,2643.7,2643.1,4.60927848]
[1727140575186,3.78264,2643.7,2643.1,8.39262848]
[1727140575326,3.78264,2643.7,2643.2,0.07564985]
[1727140575683,3.78264,2643.7,2643.1,4.53362]
[1727140576023,3.78295,2643.5,2642.9,0.8207]
[1727140576224,3.78339,2643.2,2642.9,0.8207]
[1727140576425,0.8116,2643.2,2642.7,3.0756666]
[1727140576667,4.59489,2643.2,2642.7,3.0]
[1727140577024,4.59489,2643.2,2642.7,3.07566663]
[1727140577220,0.8116,2643.2,2642.7,3.0]
[1727140577457,4.59493,2643.2,2642.7,3.0]
[1727140578122,4.59493,2643.2,2642.7,3.07566682]
[1727140578327,0.8116,2643.2,2642.7,6.85964682]
[1727140578670,3.78326,2643.3,2642.7,10.00218658]
[1727140578828,3.78326,2643.3,2642.8,0.07566412]
[1727140579432,4.59449,2643.5,2642.9,0.8207]
[1727140579630,4.59449,2643.5,2643.0,0.0756607]
[1727140580131,3.78308,2643.4,2643.0,0.0756607]
[1727140580356,3.78308,2643.4,2642.7,9.92651976]
[1727140580357,3.78349,2643.1,2642.7,3.96321976]
[1727140580565,3.78349,2643.1,2642.5,3.78422]
[1727140580566,3.78367,2643.0,2642.5,0.8207]
[1727140580769,4.59509,2643.1,2642.5,0.8207]
[1727140580978,0.8116,2643.1,2642.5,0.8207]
[1727140581199,0.8116,2643.1,2642.3,0.8207]
[1727140581476,3.78418,2642.6,2642.3,0.8207]
[1727140581687,1.271096,2643.0,2642.3,0.8207]
[1727140581688,3.78398,2642.8,2642.3,0.8207]
[1727140581882,3.7841,2642.7,2642.3,0.8207]
[1727140582037,3.78398,2642.8,2642.3,0.8207]
[1727140582246,3.78403,2642.7,2642.3,0.8207]
[1727140582439,3.78398,2642.8,2642.3,0.8207]
[1727140582642,7.56796,2642.8,2642.3,0.8207]
[1727140582842,3.78405,2642.7,2642.3,0.8207]
[1727140583680,3.78416,2642.6,2642.1,0.8207]
[1727140583881,0.8116,2642.5,2642.1,0.8207]
[1727140584180,0.8116,2642.5,2641.7,3.78537]
[1727140584181,3.78466,2642.3,2641.9,0.8207]
[1727140584480,3.78474,2642.2,2641.7,0.8207]
[1727140584787,3.78466,2642.3,2641.7,0.8207]
[1727140585915,3.78466,2642.3,2641.7,4.68182489]
[1727140586117,4.59595,2642.5,2641.8,3.78529]
[1727140586272,3.78445,2642.4,2641.8,3.86098437]
[1727140587088,3.78413,2642.7,2642.1,3.78485]
[1727140587297,3.78413,2642.7,2642.2,0.07568476]
[1727140587577,4.59553,2642.8,2642.2,3.86040476]
[1727140587824,3.78401,2642.7,2642.3,0.8207]
[1727140588133,0.8116,2642.8,2642.3,0.8207]
[1727140588277,3.78373,2642.9,2642.3,0.8963793]
[1727140588719,3.78387,2642.8,2642.3,0.8963793]
[1727140589235,3.78425,2642.6,2642.1,3.89637979]
[1727140589597,3.78425,2642.6,2642.1,0.8207]
[1727140589598,4.59585,2642.6,2642.1,0.8207]
[1727140589933,3.78439,2642.5,2642.1,0.8207]
[1727140590136,1.96569604,2643.2,2642.1,0.8207]
[1727140590137,0.8116,2642.8,2642.2,0.0756884]
[1727140590437,4.59559,2642.8,2642.2,0.0756884]
[1727140591149,3.78401,2642.7,2642.1,0.8207]
[1727140591330,3.78401,2642.7,2642.1,0.89638204]
[1727140591533,4.59559,2642.8,2642.1,0.8207]
[1727140591534,3.78418,2642.6,2642.1,0.8207]
[1727140592092,4.59559,2642.8,2642.1,4.68119559]
[1727140592731,8.37959,2642.8,2642.1,4.68119559]
[1727140593041,3.78401,2642.7,2642.1,4.68119559]
[1727140593357,0.8116,2642.8,2642.1,0.89638559]
[1727140593534,3.78427,2642.6,2642.1,0.89638559]
[1727140594832,3.78427,2642.6,2642.1,4.68123559]
[1727140595636,3.78427,2642.6,2642.1,0.8207]
[1727140595850,0.7993,2642.5,2641.8,4.61731]
[1727140595999,0.7993,2642.5,2641.8,0.8321]
[1727140596000,3.78459,2642.3,2641.8,0.8321]
[1727140596736,4.58365,2642.5,2641.8,4.61736]
[1727140596934,4.58365,2642.5,2641.9,0.07569334]
[1727140597146,3.78444,2642.4,2641.9,0.07569334]
[1727140597354,3.78444,2642.4,2641.9,0.54499867]
[1727140598364,3.78444,2642.4,2641.9,0.46930533]
[1727140598553,3.78444,2642.4,2641.8,4.61736]
[1727140598716,3.78444,2642.4,2641.8,4.69305201]
[1727140598911,4.58365,2642.5,2641.8,4.61736]
[1727140599113,4.58338,2642.7,2642.0,4.6171]
[1727140599433,3.78408,2642.7,2642.2,0.8321]
[1727140599621,3.78408,2642.7,2642.2,0.90778466]
[1727140600133,7.32,2642.9,2642.4,3.78435]
[1727140600318,3.78347,2643.1,2642.5,0.90777594]
[1727140600671,3.78358,2643.0,2642.5,0.8321]
[1727140601166,3.78389,2642.8,2642.5,0.8321]
[1727140601330,3.78372,2642.9,2642.5,0.8321]
[1727140603857,3.78401,2642.7,2642.3,0.7558]
[1727140607149,3.78324,2643.3,2642.3,0.7558]
[1727140607150,3.78324,2643.3,2642.7,3.78388]
[1727140607458,3.78294,2643.5,2642.8,0.83146778]
[1727140607776,3.78294,2643.5,2642.8,3.97398754]
[1727140608458,3.78294,2643.5,2642.9,3.78362]
[1727140608665,3.78294,2643.5,2643.0,0.07566509]
[1727140609068,3.78304,2643.4,2643.0,0.07566509]
[1727140609247,3.78304,2643.4,2642.9,0.07566377]
[1727140612089,3.7832,2643.3,2642.8,0.83146525]
[1727140615979,3.78331,2643.2,2642.8,0.83146525]
[1727140616181,3.7832,2643.3,2642.8,1.29300178]
[1727140616355,3.78331,2643.2,2642.8,0.7558]
[1727140617152,3.78352,2643.1,2642.5,0.7558]
[1727140617385,3.78366,2643.0,2642.5,0.7558]
[1727140618863,3.78352,2643.1,2642.5,0.7558]
[1727140619069,3.78373,2642.9,2642.5,0.7558]
[1727140619588,3.78373,2642.9,2642.2,3.0]
[1727140619884,0.7869,2642.8,2642.3,0.7798]
[1727140620647,4.57089,2642.8,2642.3,0.7798]
[1727140621762,3.78373,2642.9,2642.4,3.78443]
[1727140621966,3.78373,2642.9,2642.5,0.07567618]
[1727140622371,3.78373,2642.9,2642.4,3.86010629]
[1727140622994,3.78373,2642.9,2642.4,0.07567629]
[1727140623587,3.78373,2642.9,2642.4,3.86008629]
[1727140626373,3.78358,2643.0,2642.4,3.86008629]
[1727140626578,3.78375,2642.9,2642.5,0.46398863]
[1727140629119,8.1069,2643.5,2642.9,3.78364]
[1727140629320,8.1069,2643.5,2642.8,3.14251976]
[1727140629321,0.7869,2643.5,2643.1,0.7798]
[1727140629504,3.7831,2643.4,2643.0,0.07566228]
[1727140630207,3.7831,2643.4,2642.9,0.85546345]
[1727140630834,3.7831,2643.4,2642.9,4.63913345]
[1727140631137,3.78283,2643.6,2643.0,3.78356]
[1727140631430,3.78283,2643.6,2643.1,0.07565928]
[1727140631896,7.56566,2643.6,2643.1,0.07565928]
[1727140632096,3.78283,2643.6,2643.1,0.07565928]
[1727140632894,3.78283,2643.6,2643.0,3.85922067]
[1727140633234,3.78298,2643.5,2643.0,0.07566067]
[1727140633428,4.539561,2643.5,2643.0,0.07566067]
[1727140633804,4.539561,2643.5,2642.9,0.85546151]
[1727140634140,3.78298,2643.5,2642.9,0.85546151]
[1727140634343,3.78298,2643.5,2642.9,0.7798]
[1727140634511,3.78298,2643.5,2642.9,4.56351]
[1727140634711,3.78305,2643.4,2642.9,0.7798]
[1727140634909,3.7834,2643.2,2642.9,0.7798]
[1727140635644,4.615635,2643.2,2642.7,0.8052]
[1727140637008,3.7834,2643.2,2642.7,0.8052]
[1727140639118,3.7834,2643.2,2642.7,4.58916]